[Event "RUS-chT Rapid Men 2018"]
[Site "Sochi"]
[Date "2018.10.08"]
[Round "3"]
[White "Hasangatin, Ramil"]
[Black "Usmanov, Vasily"]
[Result "0-1"]
[ECO "C00"]
[WhiteElo "2485"]
[BlackElo "2453"]
[Annotator "ChessBase"]
[PlyCount "114"]
[EventDate "2018.10.05"]
[EventType "swiss"]
[EventCountry "RUS"]
[SourceTitle "playchess.com"]
[Source "ChessBase"]
[SourceQuality "1"]
[TimeControl "900+10"]

1. e4 {[%emt 0:00:00]} e6 {[%emt 0:00:00]} 2. d3 {[%emt 0:00:00]} c5 {[%emt 0:00:00]} 3. Nf3 {[%emt 0:00:01]} Nc6 {[%emt 0:00:00]} 4. c3 {[%emt 0:00:12]} d5 {[%emt 0:00:25]} 5. Nbd2 {[%emt 0:00:03]} Nf6 {[%emt 0:00:17]} 6. g3 {[%emt 0:00:08]} Be7 {[%emt 0:01:16]} 7. Bg2 {[%emt 0:00:02]} O-O {[%emt 0:00:02]} 8. O-O {[%emt 0:00:02]} b6 {[%emt 0:00:28]} 9. Re1 {[%emt 0:00:29]} Bb7 {[%emt 0:01:47]} 10. e5 {[%emt 0:00:20]} Nd7 {[%emt 0:00:04]} 11. Nf1 {[%emt 0:00:04]} Qc7 {[%emt 0:00:14]} 12. Bf4 {[%emt 0:00:22]} d4 {[%emt 0:00:07]} 13. c4 {[%emt 0:00:37]} Rae8 {[%emt 0:00:09]} 14. h4 {[%emt 0:00:36]} Qb8 {[%emt 0:00:05]} 15. N1h2 {[%emt 0:01:20]} Bd8 {[%emt 0:00:02]} 16. h5 {[%emt 0:02:06]} Bc7 {[%emt 0:00:18]} 17. h6 {[%emt 0:03:24]} g6 {[%emt 0:00:10]} 18. Ng4 {[%emt 0:00:15]} f6 {[%emt 0:01:43]} 19. Qd2 Ncxe5 {[%emt 0:03:15]} 20. Bxe5 {[%emt 0:02:47]} Bxe5 {[%emt 0:02:06]} 21. Nfxe5 {[%emt 0:01:54]} Nxe5 {[%emt 0:00:26]} 22. Nxe5 {[%emt 0:00:16]} fxe5 {[%emt 0:00:12]} 23. Bxb7 {[%emt 0:00:10]} Qxb7 {[%emt 0:00:02]} 24. Rxe5 {[%emt 0:00:05]} Rf5 {[%emt 0:00:58]} 25. Rxf5 {[%emt 0:00:47]} exf5 {[%emt 0:00:22]} 26. Re1 {[%emt 0:00:59]} Re7 {[%emt 0:00:47]} 27. Rxe7 {[%emt 0:00:24]} Qxe7 {[%emt 0:00:02]} 28. Qf4 {[%emt 0:00:01]} Kf7 {[%emt 0:00:19]} 29. Qb8 {[%emt 0:00:20]} g5 {[%emt 0:00:14]} 30. Qa8 {[%emt 0:01:19]} Kg6 {[%emt 0:00:22]} 31. Qd5 {[%emt 0:00:15]} Qf6 {[%emt 0:01:16]} 32. Qg8+ {[%emt 0:00:48]} Kxh6 {[%emt 0:00:04]} 33. a3 {[%emt 0:00:04]} a5 {[%emt 0:00:03]} 34. b3 {[%emt 0:00:09]} Qe7 {[%emt 0:00:33]} 35. Kf1 {[%emt 0:00:09]} Kh5 {[%emt 0:00:18]} 36. Qd5 {[%emt 0:00:12]} Kg6 {[%emt 0:00:22]} 37. Qc6+ {[%emt 0:00:07]} Qf6 {[%emt 0:00:02]} 38. Qe8+ {[%emt 0:00:02]} Kg7 {[%emt 0:00:09]} 39. Qd7+ {[%emt 0:00:04]} Qf7 {[%emt 0:00:09]} 40. Qc6 {[%emt 0:00:11]} Qf6 {[%emt 0:00:07]} 41. Qd7+ {[%emt 0:00:01]} Kh6 {[%emt 0:00:09]} 42. Qd5 {[%emt 0:00:01]} f4 {[%emt 0:00:18]} 43. g4 {[%emt 0:00:12]} f3 {[%emt 0:00:01]} 44. Kg1 {[%emt 0:00:19]} Kg7 {[%emt 0:00:14]} 45. Qb7+ {[%emt 0:00:24]} Kg6 {[%emt 0:00:06]} 46. Qe4+ {[%emt 0:00:04]} Kh6 {[%emt 0:00:06]} 47. Qd5 {[%emt 0:00:02]} Kg7 {[%emt 0:01:04]} 48. Qb7+ {[%emt 0:00:01]} Qf7 {[%emt 0:00:06]} 49. Qxb6 {[%emt 0:00:18]} Qd7 {[%emt 0:00:02]} 50. Kf1 {[%emt 0:00:37]} Qxg4 {[%emt 0:00:04]} 51. Qc7+ {[%emt 0:00:11]} Kg6 {[%emt 0:00:13]} 52. Qd6+ {[%emt 0:00:14]} Kh5 {[%emt 0:00:08]} 53. Qxc5 {[%emt 0:00:11]} Qg2+ {[%emt 0:00:03]} 54. Ke1 {[%emt 0:00:01]} Qg1+ {[%emt 0:00:01]} 55. Kd2 {[%emt 0:00:00]} Qxf2+ {[%emt 0:00:01]} 56. Kc1 {[%emt 0:00:01]} Qe1+ {[%emt 0:00:06]} 57. Kb2 {[%emt 0:00:01]} Qe2+ {[%emt 0:00:03]} 0-1

[Event "RUS-chT Rapid Men 2018"]
[Site "Sochi"]
[Date "2018.10.08"]
[Round "3"]
[White "Savitskiy, Sergey"]
[Black "Girshgorn, Leonid"]
[Result "1-0"]
[ECO "B15"]
[WhiteElo "2413"]
[BlackElo "1925"]
[Annotator "NA"]
[PlyCount "47"]
[EventDate "2018.10.05"]
[EventType "swiss"]
[EventCountry "RUS"]
[SourceTitle "playchess.com"]
[Source "ChessBase"]
[SourceQuality "1"]
[TimeControl "900+10"]

1. e4 {[%emt 0:00:00]} c6 {[%emt 0:00:00]} 2. d4 {[%emt 0:00:00]} d5 {[%emt 0:00:00]} 3. Nc3 {[%emt 0:00:00]} dxe4 {[%emt 0:00:00]} 4. Nxe4 {[%emt 0:00:00]} Nf6 {[%emt 0:00:00]} 5. Nxf6+ {[%emt 0:00:04]} exf6 {[%emt 0:00:00]} 6. c3 {[%emt 0:00:02]} Bd6 {[%emt 0:00:00]} 7. Bd3 {[%emt 0:00:01]} O-O {[%emt 0:00:00]} 8. Qc2 {[%emt 0:00:01]} Re8+ {[%emt 0:00:02]} 9. Ne2 {[%emt 0:00:02]} Kh8 {[%emt 0:00:01]} 10. Be3 {[%emt 0:00:16]} Bg4 {[%emt 0:00:14]} 11. O-O-O {[%emt 0:00:33]} Nd7 {[%emt 0:00:13]} 12. h3 {[%emt 0:01:28]} Bxe2 {[%emt 0:00:25]} 13. Qxe2 {[%emt 0:00:02]} b5 {[%emt 0:00:06]} 14. Qf3 {[%emt 0:00:12]} Qc7 {[%emt 0:00:52]} 15. h4 {[%emt 0:00:15]} a5 {[%emt 0:01:40]} 16. h5 {[%emt 0:00:07]} a4 {[%emt 0:00:20]} 17. Qf5 {[%emt 0:00:28]} Nf8 {[%emt 0:01:25]} 18. h6 {[%emt 0:00:03]} Ng6 {[%emt 0:00:22]} 19. g3 {[%emt 0:03:33]} a3 {[%emt 0:01:19]} 20. b4 {[%emt 0:00:09]} Qe7 {[%emt 0:05:17]} 21. Rh3 {[%emt 0:02:08]} Bxb4 {[%emt 0:02:24]} 22. Rdh1 {[%emt 0:00:17]} Bxc3 {[%emt 0:03:44]} 23. hxg7+ {[%emt 0:00:05]} Kg8 {[%emt 0:00:02]} 24. Rxh7 {[%emt 0:00:11]} 1-0

[Event "RUS-chT Rapid Men 2018"]
[Site "Sochi"]
[Date "2018.10.08"]
[Round "3"]
[White "Sergeyev, Alexander"]
[Black "Dudin, Gleb"]
[Result "1-0"]
[ECO "E04"]
[WhiteElo "2397"]
[BlackElo "2178"]
[Annotator "NA"]
[PlyCount "61"]
[EventDate "2018.10.05"]
[EventType "swiss"]
[EventCountry "RUS"]
[SourceTitle "playchess.com"]
[Source "ChessBase"]
[SourceQuality "1"]
[TimeControl "900+10"]

1. d4 {[%emt 0:00:00]} Nf6 {[%emt 0:00:00]} 2. c4 {[%emt 0:00:00]} e6 {[%emt 0:00:00]} 3. g3 {[%emt 0:00:04]} d5 {[%emt 0:00:02]} 4. Nf3 {[%emt 0:00:03]} dxc4 {[%emt 0:00:08]} 5. Bg2 {[%emt 0:00:31]} Bb4+ {[%emt 0:00:07]} 6. Bd2 {[%emt 0:00:11]} c5 {[%emt 0:00:09]} 7. O-O {[%emt 0:01:38]} O-O {[%emt 0:00:35]} 8. dxc5 {[%emt 0:00:18]} Bxc5 {[%emt 0:00:06]} 9. Na3 {[%emt 0:01:07]} Nbd7 {[%emt 0:02:38]} 10. Nxc4 {[%emt 0:00:09]} b5 {[%emt 0:00:09]} 11. Ba5 {[%emt 0:01:20]} Qe7 {[%emt 0:01:05]} 12. Nce5 {[%emt 0:01:00]} Bb7 {[%emt 0:00:59]} 13. Nxd7 {[%emt 0:00:24]} Nxd7 {[%emt 0:00:21]} 14. Qd3 {[%emt 0:00:12]} a6 {[%emt 0:01:22]} 15. b4 {[%emt 0:03:27]} Ba7 {[%emt 0:03:53]} 16. Bc7 {[%emt 0:00:59]} Bd5 {[%emt 0:02:55]} 17. Rfd1 {[%emt 0:02:46]} Nf6 {[%emt 0:01:43]} 18. Rac1 {[%emt 0:02:48]} Qxb4 {[%emt 0:00:39]} 19. Be5 {[%emt 0:00:51]} Ne4 {[%emt 0:00:42]} 20. e3 {[%emt 0:00:12]} h6 {[%emt 0:00:25]} 21. Nd4 {[%emt 0:00:10]} Nc5 {[%emt 0:00:12]} 22. Qf1 {[%emt 0:00:08]} Bxg2 {[%emt 0:00:08]} 23. Qxg2 {[%emt 0:00:02]} f6 {[%emt 0:00:06]} 24. Bd6 {[%emt 0:00:02]} Rfd8 {[%emt 0:00:16]} 25. Nxe6 {[%emt 0:00:05]} Rxd6 {[%emt 0:00:14]} 26. Qxa8+ {[%emt 0:00:02]} Kf7 {[%emt 0:00:08]} 27. Qf8+ {[%emt 0:00:06]} Kxe6 {[%emt 0:00:05]} 28. Qxd6+ {[%emt 0:00:03]} Kf5 {[%emt 0:00:03]} 29. Rd5+ {[%emt 0:00:03]} Kg6 {[%emt 0:00:02]} 30. Rdxc5 {[%emt 0:00:02]} Bxc5 {[%emt 0:00:10]} 31. Qxc5 {[%emt 0:00:01]} 1-0

[Event "RUS-chT Rapid Men 2018"]
[Site "Sochi"]
[Date "2018.10.08"]
[Round "3"]
[White "Derjabin, Ilja"]
[Black "Tenikashvili, Georgij"]
[Result "1-0"]
[ECO "A09"]
[WhiteElo "2345"]
[BlackElo "2361"]
[Annotator "NA"]
[PlyCount "60"]
[EventDate "2018.10.05"]
[EventType "swiss"]
[EventCountry "RUS"]
[SourceTitle "playchess.com"]
[Source "ChessBase"]
[SourceQuality "1"]
[TimeControl "900+10"]

1. Nf3 {[%emt 0:00:00]} d5 {[%emt 0:00:00]} 2. c4 {[%emt 0:00:00]} dxc4 {[%emt 0:00:00]} 3. Na3 {[%emt 0:00:00]} a6 {[%emt 0:00:06]} 4. Nxc4 {[%emt 0:00:06]} b5 {[%emt 0:00:03]} 5. Ne3 {[%emt 0:00:18]} Bb7 {[%emt 0:00:03]} 6. g3 {[%emt 0:00:06]} Nf6 {[%emt 0:00:25]} 7. Bg2 {[%emt 0:00:04]} e6 {[%emt 0:00:05]} 8. a4 {[%emt 0:00:05]} Nbd7 {[%emt 0:00:24]} 9. O-O {[%emt 0:00:11]} c5 {[%emt 0:01:50]} 10. d4 {[%emt 0:00:45]} Be7 {[%emt 0:00:56]} 11. dxc5 {[%emt 0:04:23]} Bxc5 {[%emt 0:01:43]} 12. Qb3 {[%emt 0:00:13]} b4 {[%emt 0:01:52]} 13. Rd1 {[%emt 0:01:50]} Qe7 {[%emt 0:01:57]} 14. Ne1 {[%emt 0:03:53]} Bxg2 {[%emt 0:00:28]} 15. Kxg2 {[%emt 0:00:01]} a5 {[%emt 0:01:49]} 16. Nd3 {[%emt 0:00:17]} O-O {[%emt 0:00:11]} 17. Qc4 {[%emt 0:00:55]} Rfc8 {[%emt 0:01:17]} 18. Qh4 {[%emt 0:00:03]} Bb6 {[%emt 0:00:33]} 19. Nc4 {[%emt 0:00:26]} Bc7 {[%emt 0:01:53]} 20. b3 {[%emt 0:00:24]} Nb6 {[%emt 0:00:55]} 21. Bg5 {[%emt 0:01:30]} Nxc4 {[%emt 0:00:11]} 22. bxc4 {[%emt 0:00:03]} Bb6 {[%emt 0:00:24]} 23. Ne5 {[%emt 0:00:14]} Qb7+ {[%emt 0:00:43]} 24. f3 {[%emt 0:00:05]} Ne8 {[%emt 0:00:22]} 25. Rd7 {[%emt 0:00:25]} Rc7 {[%emt 0:00:04]} 26. Rad1 {[%emt 0:00:03]} f6 {[%emt 0:00:27]} 27. Qg4 {[%emt 0:00:51]} f5 {[%emt 0:00:25]} 28. Qh5 {[%emt 0:00:08]} Rxd7 {[%emt 0:00:21]} 29. Rxd7 {[%emt 0:00:02]} g6 {[%emt 0:00:10]} 30. Qh6 {[%emt 0:00:16]} Nc7 {[%emt 0:00:12]} 1-0

[Event "RUS-chT Rapid Men 2018"]
[Site "Sochi"]
[Date "2018.10.08"]
[Round "3"]
[White "Nazaretyan, Tigran"]
[Black "Jary, Sergey"]
[Result "1-0"]
[ECO "E52"]
[WhiteElo "2248"]
[BlackElo "2286"]
[Annotator "NA"]
[PlyCount "67"]
[EventDate "2018.10.05"]
[EventType "swiss"]
[EventCountry "RUS"]
[SourceTitle "playchess.com"]
[Source "ChessBase"]
[SourceQuality "1"]
[TimeControl "900+10"]

1. d4 {[%emt 0:00:00]} Nf6 {[%emt 0:00:00]} 2. c4 {[%emt 0:00:00]} e6 {[%emt 0:00:00]} 3. Nf3 {[%emt 0:00:00]} Bb4+ {[%emt 0:00:00]} 4. Nc3 {[%emt 0:00:10]} d5 {[%emt 0:00:00]} 5. e3 {[%emt 0:00:02]} O-O {[%emt 0:00:04]} 6. Bd3 {[%emt 0:00:05]} b6 {[%emt 0:00:04]} 7. O-O {[%emt 0:00:04]} Bb7 {[%emt 0:00:07]} 8. cxd5 {[%emt 0:00:02]} exd5 {[%emt 0:00:03]} 9. a3 {[%emt 0:00:02]} Bd6 {[%emt 0:00:20]} 10. b4 {[%emt 0:00:05]} a6 11. Qb3 {[%emt 0:00:16]} Nbd7 {[%emt 0:00:52]} 12. a4 {[%emt 0:00:09]} Qe7 {[%emt 0:00:13]} 13. Ba3 {[%emt 0:00:20]} c6 {[%emt 0:01:37]} 14. a5 {[%emt 0:00:52]} b5 {[%emt 0:02:15]} 15. Rae1 {[%emt 0:01:20]} Ne4 {[%emt 0:00:30]} 16. Bxe4 {[%emt 0:01:17]} dxe4 {[%emt 0:00:05]} 17. Nd2 {[%emt 0:00:11]} Nf6 {[%emt 0:00:15]} 18. f3 {[%emt 0:01:37]} exf3 {[%emt 0:01:26]} 19. Rxf3 {[%emt 0:02:56]} Ng4 {[%emt 0:02:41]} 20. h3 {[%emt 0:00:44]} Nh6 {[%emt 0:03:09]} 21. e4 {[%emt 0:00:39]} Bc8 {[%emt 0:00:18]} 22. e5 {[%emt 0:00:30]} Bb8 {[%emt 0:00:04]} 23. Nce4 {[%emt 0:01:48]} Ba7 {[%emt 0:00:12]} 24. Nc5 {[%emt 0:00:07]} Be6 {[%emt 0:00:11]} 25. Qc2 {[%emt 0:00:12]} Rad8 {[%emt 0:00:07]} 26. Bb2 {[%emt 0:00:01]} Bxc5 {[%emt 0:00:13]} 27. dxc5 {[%emt 0:00:21]} Qg5 {[%emt 0:00:46]} 28. Ne4 {[%emt 0:00:07]} Qh5 {[%emt 0:00:09]} 29. Rg3 {[%emt 0:00:10]} Kh8 {[%emt 0:00:05]} 30. Rg5 {[%emt 0:00:38]} Qh4 {[%emt 0:00:07]} 31. g3 {[%emt 0:00:29]} Qxh3 {[%emt 0:00:11]} 32. Nf2 {[%emt 0:00:05]} Bb3 {[%emt 0:00:02]} 33. Qxb3 {[%emt 0:00:26]} Qd7 {[%emt 0:00:01]} 34. e6 {[%emt 0:00:06]} 1-0

[Event "RUS-chT Rapid Men 2018"]
[Site "Sochi"]
[Date "2018.10.08"]
[Round "3"]
[White "Taysayev, Timur"]
[Black "Kurbedinov, Ramis"]
[Result "0-1"]
[ECO "C60"]
[WhiteElo "2225"]
[BlackElo "2305"]
[Annotator "NA"]
[PlyCount "156"]
[EventDate "2018.10.05"]
[EventType "swiss"]
[EventCountry "RUS"]
[SourceTitle "playchess.com"]
[Source "ChessBase"]
[SourceQuality "1"]
[TimeControl "900+10"]

1. e4 {[%emt 0:00:00]} e5 {[%emt 0:00:00]} 2. Nf3 {[%emt 0:00:00]} Nc6 {[%emt 0:00:00]} 3. Bb5 {[%emt 0:00:07]} g6 {[%emt 0:00:00]} 4. d4 {[%emt 0:00:35]} exd4 {[%emt 0:00:00]} 5. Bg5 {[%emt 0:00:04]} Be7 {[%emt 0:00:00]} 6. h4 {[%emt 0:00:12]} h6 {[%emt 0:01:25]} 7. Bf4 {[%emt 0:00:20]} a6 {[%emt 0:01:38]} 8. Ba4 {[%emt 0:02:24]} b5 {[%emt 0:00:59]} 9. Bb3 {[%emt 0:00:03]} d6 {[%emt 0:00:15]} 10. Bd5 {[%emt 0:06:01]} Bd7 {[%emt 0:00:18]} 11. Nxd4 {[%emt 0:00:15]} Nxd4 {[%emt 0:00:41]} 12. Qxd4 {[%emt 0:01:26]} Bf6 {[%emt 0:00:33]} 13. e5 {[%emt 0:00:36]} dxe5 {[%emt 0:00:23]} 14. Bxe5 {[%emt 0:00:11]} c6 {[%emt 0:00:13]} 15. Bxf6 {[%emt 0:00:41]} Qxf6 {[%emt 0:01:20]} 16. Qxf6 {[%emt 0:00:15]} Nxf6 {[%emt 0:00:02]} 17. Bf3 {[%emt 0:00:22]} O-O-O {[%emt 0:00:15]} 18. O-O {[%emt 0:00:04]} g5 {[%emt 0:00:09]} 19. Nc3 {[%emt 0:01:26]} g4 {[%emt 0:01:03]} 20. Be4 {[%emt 0:00:35]} b4 {[%emt 0:00:14]} 21. Bd3 {[%emt 0:01:07]} bxc3 {[%emt 0:00:02]} 22. Bxa6+ {[%emt 0:00:02]} Kc7 {[%emt 0:00:02]} 23. bxc3 {[%emt 0:00:20]} Bf5 {[%emt 0:00:07]} 24. Bc4 {[%emt 0:00:06]} Nd5 {[%emt 0:00:14]} 25. Rac1 {[%emt 0:00:06]} Nxc3 {[%emt 0:00:07]} 26. Rfe1 {[%emt 0:00:02]} Rhe8 {[%emt 0:00:42]} 27. Bxf7 {[%emt 0:00:28]} Rxe1+ {[%emt 0:00:36]} 28. Rxe1 {[%emt 0:00:02]} Rd1 {[%emt 0:00:07]} 29. Rxd1 {[%emt 0:00:08]} Nxd1 {[%emt 0:00:00]} 30. Bb3 {[%emt 0:00:41]} c5 {[%emt 0:01:19]} 31. c4 {[%emt 0:01:04]} Nb2 {[%emt 0:00:48]} 32. Kh2 {[%emt 0:00:06]} Be6 {[%emt 0:00:15]} 33. Kg3 {[%emt 0:00:03]} h5 {[%emt 0:01:15]} 34. Kf4 {[%emt 0:00:07]} Bxc4 {[%emt 0:00:14]} 35. Kg5 {[%emt 0:00:03]} Be2 {[%emt 0:00:13]} 36. Kxh5 {[%emt 0:00:12]} g3+ {[%emt 0:00:07]} 37. f3 {[%emt 0:00:01]} Bxf3+ {[%emt 0:00:03]} 38. Kg5 {[%emt 0:00:01]} Bxg2 {[%emt 0:00:46]} 39. Kf4 {[%emt 0:00:02]} Be4 {[%emt 0:00:59]} 40. Kxg3 {[%emt 0:00:04]} Nd3 {[%emt 0:00:14]} 41. h5 {[%emt 0:00:15]} Bh7 {[%emt 0:00:42]} 42. Kf3 {[%emt 0:00:18]} Ne5+ {[%emt 0:00:24]} 43. Kf4 {[%emt 0:00:02]} Kd6 {[%emt 0:00:07]} 44. Kg5 {[%emt 0:00:07]} c4 {[%emt 0:00:25]} 45. Kh6 {[%emt 0:00:17]} cxb3 {[%emt 0:00:17]} 46. axb3 {[%emt 0:00:02]} Bd3 {[%emt 0:00:20]} 47. Kg7 {[%emt 0:00:02]} Nf3 {[%emt 0:00:24]} 48. Kf6 {[%emt 0:00:12]} Kc5 {[%emt 0:00:20]} 49. h6 {[%emt 0:00:03]} Kb4 {[%emt 0:00:05]} 50. Kg7 {[%emt 0:00:29]} Ng5 {[%emt 0:00:02]} 51. h7 {[%emt 0:00:01]} Nxh7 {[%emt 0:00:02]} 52. Kh8 {[%emt 0:00:03]} Ng5 {[%emt 0:00:11]} 53. Kg7 {[%emt 0:00:01]} Nf3 {[%emt 0:00:09]} 54. Kf6 {[%emt 0:00:01]} Be4 {[%emt 0:00:02]} 55. Ke6 {[%emt 0:00:01]} Kxb3 {[%emt 0:00:04]} 56. Kf6 {[%emt 0:00:03]} Kc4 {[%emt 0:00:02]} 57. Ke6 {[%emt 0:00:01]} Kc5 {[%emt 0:00:02]} 58. Kf6 {[%emt 0:00:02]} Kd6 {[%emt 0:00:02]} 59. Kf7 {[%emt 0:00:01]} Ke5 {[%emt 0:00:09]} 60. Kg7 {[%emt 0:00:01]} Ng5 {[%emt 0:00:06]} 61. Kh6 {[%emt 0:00:02]} Kf6 {[%emt 0:00:03]} 62. Kh5 {[%emt 0:00:01]} Nf7 {[%emt 0:00:46]} 63. Kg4 {[%emt 0:00:01]} Ke5 {[%emt 0:00:02]} 64. Kg3 {[%emt 0:00:04]} Kd4 {[%emt 0:00:17]} 65. Kf4 {[%emt 0:00:01]} Kd3 {[%emt 0:00:01]} 66. Kg4 {[%emt 0:00:07]} Ke3 {[%emt 0:00:02]} 67. Kg3 {[%emt 0:00:01]} Bf5 {[%emt 0:00:11]} 68. Kg2 {[%emt 0:00:05]} Ne5 {[%emt 0:00:13]} 69. Kg3 {[%emt 0:00:01]} Ng6 {[%emt 0:00:01]} 70. Kg2 {[%emt 0:00:01]} Be4+ {[%emt 0:00:08]} 71. Kg3 {[%emt 0:00:02]} Bf3 {[%emt 0:00:02]} 72. Kh2 {[%emt 0:00:01]} Kf2 {[%emt 0:00:07]} 73. Kh3 {[%emt 0:00:01]} Bh5 {[%emt 0:00:04]} 74. Kh2 {[%emt 0:00:01]} Nf4 {[%emt 0:00:02]} 75. Kh1 {[%emt 0:00:01]} Ne2 {[%emt 0:00:14]} 76. Kh2 {[%emt 0:00:00]} Bg4 {[%emt 0:00:02]} 77. Kh1 {[%emt 0:00:01]} Ng3+ {[%emt 0:00:10]} 78. Kh2 {[%emt 0:00:01]} Nf1+ 0-1

[Event "RUS-chT Rapid Men 2018"]
[Site "Sochi"]
[Date "2018.10.08"]
[Round "3"]
[White "Kretov, Evgenij"]
[Black "Rozum, Ivan"]
[Result "1/2-1/2"]
[ECO "E30"]
[WhiteElo "2219"]
[BlackElo "2573"]
[Annotator "ChessBase"]
[PlyCount "61"]
[EventDate "2018.10.05"]
[EventType "swiss"]
[EventCountry "RUS"]
[SourceTitle "playchess.com"]
[Source "ChessBase"]
[SourceQuality "1"]
[TimeControl "900+10"]

1. d4 {[%emt 0:00:00]} Nf6 {[%emt 0:00:00]} 2. c4 {[%emt 0:00:00]} e6 {[%emt 0:00:00]} 3. Nc3 {[%emt 0:00:00]} Bb4 {[%emt 0:00:00]} 4. Bg5 {[%emt 0:00:00]} h6 {[%emt 0:00:19]} 5. Bh4 {[%emt 0:00:00]} g5 {[%emt 0:00:03]} 6. Bg3 {[%emt 0:00:00]} Ne4 {[%emt 0:00:02]} 7. Qc2 {[%emt 0:00:00]} Nxg3 {[%emt 0:00:02]} 8. hxg3 {[%emt 0:00:01]} Bf8 {[%emt 0:00:03]} 9. Nf3 {[%emt 0:00:26]} Bg7 {[%emt 0:00:02]} 10. e3 {[%emt 0:00:07]} d6 {[%emt 0:00:03]} 11. Bd3 {[%emt 0:00:09]} Qe7 {[%emt 0:00:02]} 12. b4 {[%emt 0:01:03]} c5 {[%emt 0:01:32]} 13. bxc5 {[%emt 0:00:21]} dxc5 {[%emt 0:00:01]} 14. d5 {[%emt 0:00:18]} O-O {[%emt 0:01:16]} 15. Rd1 {[%emt 0:00:32]} f5 {[%emt 0:00:28]} 16. dxe6 {[%emt 0:02:14]} Bxe6 {[%emt 0:00:06]} 17. Nd5 {[%emt 0:00:17]} Qf7 {[%emt 0:02:05]} 18. g4 {[%emt 0:00:45]} Nc6 {[%emt 0:00:30]} 19. gxf5 {[%emt 0:02:11]} Bxf5 {[%emt 0:03:06]} 20. Bxf5 {[%emt 0:00:47]} Qxf5 {[%emt 0:00:02]} 21. Qe2 {[%emt 0:00:44]} Rae8 {[%emt 0:00:37]} 22. O-O {[%emt 0:00:41]} Re4 {[%emt 0:04:23]} 23. Qd3 {[%emt 0:01:55]} Nb4 {[%emt 0:01:25]} 24. Qb1 {[%emt 0:01:07]} Qe6 {[%emt 0:01:03]} 25. Nxb4 {[%emt 0:00:28]} cxb4 {[%emt 0:00:01]} 26. Qxb4 {[%emt 0:00:33]} Rxf3 {[%emt 0:01:18]} 27. gxf3 {[%emt 0:00:07]} Rg4+ {[%emt 0:00:01]} 28. fxg4 {[%emt 0:00:43]} Qxg4+ {[%emt 0:00:04]} 29. Kh1 {[%emt 0:00:01]} Qh3+ {[%emt 0:00:10]} 30. Kg1 {[%emt 0:00:01]} Qg4+ {[%emt 0:00:02]} 31. Kh1 1/2-1/2

[Event "RUS-chT Rapid Men 2018"]
[Site "Sochi"]
[Date "2018.10.08"]
[Round "3"]
[White "Okun, Evgeny"]
[Black "Gogolev, Artem"]
[Result "1/2-1/2"]
[ECO "B29"]
[WhiteElo "2163"]
[BlackElo "2389"]
[Annotator "NA"]
[PlyCount "65"]
[EventDate "2018.10.05"]
[EventType "swiss"]
[EventCountry "RUS"]
[SourceTitle "playchess.com"]
[Source "ChessBase"]
[SourceQuality "1"]
[TimeControl "900+10"]

1. e4 {[%emt 0:00:00]} c5 {[%emt 0:00:00]} 2. Nf3 {[%emt 0:00:00]} Nf6 {[%emt 0:00:00]} 3. Nc3 {[%emt 0:00:13]} d5 {[%emt 0:00:00]} 4. e5 {[%emt 0:00:19]} Nfd7 {[%emt 0:00:00]} 5. d3 {[%emt 0:00:39]} e6 {[%emt 0:00:20]} 6. g3 {[%emt 0:00:12]} Nc6 {[%emt 0:00:08]} 7. Bf4 {[%emt 0:00:13]} Be7 {[%emt 0:00:10]} 8. h4 {[%emt 0:00:02]} b5 {[%emt 0:02:55]} 9. a3 {[%emt 0:01:07]} O-O {[%emt 0:02:31]} 10. Bg2 {[%emt 0:00:05]} Qc7 {[%emt 0:01:13]} 11. O-O {[%emt 0:00:56]} b4 {[%emt 0:02:41]} 12. axb4 {[%emt 0:00:52]} cxb4 {[%emt 0:01:05]} 13. Nxd5 {[%emt 0:00:17]} exd5 {[%emt 0:00:03]} 14. e6 {[%emt 0:00:00]} Bd6 {[%emt 0:00:08]} 15. exd7 {[%emt 0:00:51]} Bxd7 {[%emt 0:00:05]} 16. Bxd6 {[%emt 0:01:59]} Qxd6 {[%emt 0:00:01]} 17. Ng5 {[%emt 0:00:01]} h6 {[%emt 0:00:39]} 18. Nh3 {[%emt 0:00:02]} Bxh3 {[%emt 0:01:01]} 19. Bxh3 {[%emt 0:00:01]} a5 {[%emt 0:00:15]} 20. Ra4 {[%emt 0:00:47]} Rfe8 {[%emt 0:01:42]} 21. c3 {[%emt 0:00:38]} Re7 {[%emt 0:00:55]} 22. Bg2 {[%emt 0:01:10]} Qc5 {[%emt 0:01:41]} 23. Qb3 {[%emt 0:02:50]} Rd8 {[%emt 0:00:01]} 24. Raa1 {[%emt 0:02:11]} Re2 {[%emt 0:01:05]} 25. cxb4 {[%emt 0:00:15]} Nxb4 {[%emt 0:00:04]} 26. Qa4 {[%emt 0:01:06]} Rxb2 {[%emt 0:00:07]} 27. Qxa5 {[%emt 0:00:06]} Qxa5 {[%emt 0:00:04]} 28. Rxa5 {[%emt 0:00:01]} Rd2 {[%emt 0:00:27]} 29. Rb5 {[%emt 0:00:25]} Nxd3 {[%emt 0:00:02]} 30. Rxd5 {[%emt 0:01:04]} Rxd5 {[%emt 0:00:04]} 31. Bxd5 {[%emt 0:00:00]} Nxf2 {[%emt 0:00:26]} 32. Bxf7+ {[%emt 0:00:05]} Kxf7 {[%emt 0:00:02]} 33. Rxf2+ 1/2-1/2